[Event "FIDE Rating Open 2024"]
[Site "Dhaka"]
[Date "2024.01.16"]
[Round "2.2"]
[White "Zia, Tahsin Tajwar"]
[Black "Mukitul, Islam Ripon"]
[Result "1-0"]
[ECO "A51"]
[WhiteElo "2275"]
[BlackElo "1831"]
[Annotator "NA RC"]
[PlyCount "67"]
[EventDate "2024.01.16"]
[EventType "swiss"]
[EventCountry "BAN"]
[SourceTitle "playchess.com"]
[Source "ChessBase"]
[SourceQuality "1"]
[TimeControl "5400+30"]

1. d4 {[%emt 0:01:44]} Nf6 {[%emt 0:00:23]} 2. c4 {[%emt 0:00:27]} e5 {[%emt 0:01:22]} 3. dxe5 {[%emt 0:00:05]} Ne4 {[%emt 0:05:09]} 4. Qd5 {[%emt 0:06:00]} Nc5 {[%emt 0:16:06]} 5. Nc3 {[%emt 0:02:56]} b6 {[%emt 0:01:01]} 6. Bg5 {[%emt 0:06:29]} Qxg5 {[%emt 0:30:16]} 7. Qxa8 {[%emt 0:00:15]} Nca6 {[%emt 0:02:17]} 8. Nf3 {[%emt 0:01:04]} Qh6 {[%emt 0:03:28]} 9. a3 {[%emt 0:03:56]} Be7 {[%emt 0:04:51]} 10. Qe4 {[%emt 0:02:52]} O-O {[%emt 0:01:26]} 11. g3 {[%emt 0:02:45]} Nc5 {[%emt 0:00:22]} 12. Qc2 {[%emt 0:00:11]} Bb7 {[%emt 0:00:59]} 13. Bg2 {[%emt 0:00:14]} Nc6 {[%emt 0:05:21]} 14. O-O {[%emt 0:00:56]} g5 {[%emt 0:10:54]} 15. h3 {[%emt 0:02:15]} Qg7 {[%emt 0:05:33]} 16. Nd5 {[%emt 0:00:30]} Bd8 {[%emt 0:00:29]} 17. Qf5 {[%emt 0:00:09]} h6 {[%emt 0:04:08]} 18. b4 {[%emt 0:00:42]} Ne6 {[%emt 0:00:52]} 19. Rad1 {[%emt 0:00:17]} Kh8 {[%emt 0:00:32]} 20. e3 {[%emt 0:01:51]} f6 {[%emt 0:00:29]} 21. exf6 {[%emt 0:00:17]} Bxf6 {[%emt 0:00:01]} 22. Nxf6 {[%emt 0:00:15]} Rxf6 {[%emt 0:00:02]} 23. Qc2 {[%emt 0:00:18]} Nxb4 {[%emt 0:05:08]} 24. axb4 {[%emt 0:00:41]} Bxf3 {[%emt 0:00:02]} 25. Bxf3 {[%emt 0:00:41]} Rxf3 {[%emt 0:00:02]} 26. Qe4 {[%emt 0:00:17]} Rf8 {[%emt 0:00:52]} 27. Rd2 {[%emt 0:00:24]} a5 {[%emt 0:00:58]} 28. bxa5 {[%emt 0:00:39]} bxa5 {[%emt 0:00:32]} 29. Qd5 {[%emt 0:00:01]} a4 {[%emt 0:00:45]} 30. Qxd7 {[%emt 0:00:15]} Nc5 {[%emt 0:00:09]} 31. Qc6 {[%emt 0:01:29]} Qe7 {[%emt 0:00:36]} 32. Rd5 {[%emt 0:00:15]} Ne4 {[%emt 0:00:52]} 33. Rd7 {[%emt 0:00:34]} Qf6 {[%emt 0:00:31]} 34. Qxe4 {[%emt 0:00:36]} 1-0

[Event "FIDE Rating Open 2024"]
[Site "Dhaka"]
[Date "2024.01.16"]
[Round "2.3"]
[White "Siam, Chowdhury"]
[Black "Mohammad Minhaz Uddin"]
[Result "0-1"]
[ECO "C42"]
[WhiteElo "1822"]
[BlackElo "2224"]
[Annotator "NA RC"]
[PlyCount "96"]
[EventDate "2024.01.16"]
[EventType "swiss"]
[EventCountry "BAN"]
[SourceTitle "playchess.com"]
[Source "ChessBase"]
[SourceQuality "1"]
[TimeControl "5400+30"]

1. e4 {[%emt 0:26:24]} e5 {[%emt 0:00:07]} 2. Nf3 {[%emt 0:00:09]} Nf6 {[%emt 0:00:20]} 3. Nxe5 {[%emt 0:00:50]} d6 {[%emt 0:00:02]} 4. Nf3 {[%emt 0:00:02]} Nxe4 {[%emt 0:00:08]} 5. d4 {[%emt 0:00:15]} d5 {[%emt 0:00:02]} 6. Bd3 {[%emt 0:00:02]} Nc6 {[%emt 0:00:01]} 7. O-O {[%emt 0:00:03]} Be7 {[%emt 0:00:01]} 8. c4 {[%emt 0:00:27]} Nb4 {[%emt 1:33:49]} 9. Re1 {[%emt 0:02:39]} Nxd3 {[%emt 0:00:00]} 10. Qxd3 {[%emt 0:00:02]} Nf6 {[%emt 0:00:00]} 11. h3 {[%emt 0:00:55]} O-O {[%emt 0:00:00]} 12. Nc3 {[%emt 0:04:39]} dxc4 {[%emt 0:00:00]} 13. Qxc4 {[%emt 0:01:35]} c6 {[%emt 0:00:00]} 14. Be3 {[%emt 0:06:34]} Be6 {[%emt 0:00:00]} 15. Qd3 {[%emt 0:01:22]} Nd5 {[%emt 0:00:00]} 16. Nxd5 {[%emt 0:03:22]} Bxd5 {[%emt 0:00:00]} 17. Bf4 {[%emt 0:00:25]} f6 {[%emt 0:00:00]} 18. b3 {[%emt 0:02:16]} Rf7 {[%emt 0:00:00]} 19. Rad1 {[%emt 0:02:33]} Bf8 {[%emt 0:00:00]} 20. Nd2 {[%emt 0:05:37]} a5 {[%emt 0:00:00]} 21. Ne4 {[%emt 0:02:39]} a4 {[%emt 0:00:00]} 22. Ra1 {[%emt 0:10:42]} Bb4 {[%emt 0:00:00]} 23. Rec1 {[%emt 0:02:33]} Qa5 {[%emt 0:00:00]} 24. a3 {[%emt 0:04:28]} Bxe4 {[%emt 0:02:59]} 25. Qxe4 {[%emt 0:00:16]} axb3 {[%emt 0:00:10]} 26. axb4 {[%emt 0:00:37]} Qxa1 {[%emt 0:00:03]} 27. Rxa1 {[%emt 0:00:01]} Rxa1+ {[%emt 0:00:02]} 28. Kh2 {[%emt 0:00:02]} b2 {[%emt 0:00:06]} 29. Qe8+ {[%emt 0:00:50]} Rf8 {[%emt 0:00:01]} 30. Qe6+ {[%emt 0:01:15]} Kh8 {[%emt 0:00:24]} 31. Qe7 {[%emt 0:01:09]} Raa8 {[%emt 0:04:18]} 32. Qe4 {[%emt 0:02:38]} Rfe8 {[%emt 0:00:18]} 33. Qc2 {[%emt 0:01:50]} Re2 {[%emt 0:00:45]} 34. Qxe2 {[%emt 0:01:22]} b1=Q {[%emt 0:00:05]} 35. Qe7 {[%emt 0:00:38]} Qf5 {[%emt 0:00:36]} 36. Bg3 {[%emt 0:01:38]} b5 {[%emt 0:00:09]} 37. Qb7 {[%emt 0:02:04]} Qc8 {[%emt 0:00:29]} 38. Qe7 {[%emt 0:00:24]} Qe8 {[%emt 0:00:05]} 39. Qd6 {[%emt 0:00:26]} Rd8 {[%emt 0:00:03]} 40. Qc5 {[%emt 0:00:22]} Rd5 {[%emt 0:00:13]} 41. Qb6 {[%emt 0:00:30]} Qd7 {[%emt 0:01:25]} 42. Bc7 {[%emt 0:00:38]} h5 {[%emt 0:00:06]} 43. Qb8+ {[%emt 0:02:10]} Kh7 {[%emt 0:00:02]} 44. Bb6 {[%emt 0:01:05]} Qd6+ {[%emt 0:00:24]} 45. Qxd6 {[%emt 0:01:39]} Rxd6 {[%emt 0:00:02]} 46. g3 {[%emt 0:00:09]} Kg6 {[%emt 0:00:43]} 47. Kg2 {[%emt 0:01:11]} Re6 {[%emt 0:00:51]} 48. f4 {[%emt 0:00:36]} Re1 {[%emt 0:00:27]} 0-1

[Event "FIDE Rating Open 2024"]
[Site "Dhaka"]
[Date "2024.01.16"]
[Round "2.4"]
[White "Subrota, Biswas"]
[Black "Nasim Hossain, Bhuiyan"]
[Result "1/2-1/2"]
[ECO "E11"]
[WhiteElo "2223"]
[BlackElo "1812"]
[Annotator "NA RC"]
[PlyCount "71"]
[EventDate "2024.01.16"]
[EventType "swiss"]
[EventCountry "BAN"]
[SourceTitle "playchess.com"]
[Source "ChessBase"]
[SourceQuality "1"]
[TimeControl "5400+30"]

1. d4 {[%emt 0:09:30]} d5 {[%emt 0:02:04]} 2. c4 {[%emt 0:00:05]} e6 {[%emt 0:01:17]} 3. Nf3 {[%emt 0:00:06]} Nf6 {[%emt 0:00:23]} 4. g3 {[%emt 0:00:21]} Bb4+ {[%emt 0:00:36]} 5. Bd2 {[%emt 0:00:38]} Be7 {[%emt 0:01:53]} 6. Bg2 {[%emt 0:00:07]} O-O {[%emt 0:00:07]} 7. O-O {[%emt 0:00:05]} c6 {[%emt 0:00:11]} 8. Qc2 {[%emt 0:02:01]} Nbd7 {[%emt 0:02:38]} 9. Bf4 {[%emt 0:00:11]} c5 {[%emt 0:01:07]} 10. dxc5 {[%emt 0:01:17]} Bxc5 {[%emt 0:03:13]} 11. cxd5 {[%emt 0:00:23]} Nxd5 {[%emt 0:00:21]} 12. Ng5 {[%emt 0:01:16]} g6 {[%emt 0:01:04]} 13. Ne4 {[%emt 0:07:49]} Nxf4 {[%emt 0:00:47]} 14. gxf4 {[%emt 0:00:01]} Bd4 {[%emt 0:02:50]} 15. Rd1 {[%emt 0:01:01]} Qb6 {[%emt 0:00:29]} 16. Nbc3 {[%emt 0:00:50]} Bg7 {[%emt 0:01:07]} 17. Na4 {[%emt 0:09:12]} Qa5 {[%emt 0:04:36]} 18. Nd6 {[%emt 0:06:07]} Nf6 {[%emt 0:02:52]} 19. Nc5 {[%emt 0:23:08]} Rb8 {[%emt 0:05:47]} 20. e3 {[%emt 0:03:13]} b6 {[%emt 0:01:36]} 21. b4 {[%emt 0:00:06]} Qxb4 {[%emt 0:02:06]} 22. Rab1 {[%emt 0:00:02]} Qa3 {[%emt 0:20:30]} 23. Rb3 {[%emt 0:00:20]} Qa5 {[%emt 0:01:16]} 24. Rb5 {[%emt 0:00:06]} Qa3 {[%emt 0:02:45]} 25. Rd3 {[%emt 0:01:54]} Qxc5 {[%emt 0:00:55]} 26. Qxc5 {[%emt 0:00:27]} bxc5 {[%emt 0:00:18]} 27. Rxb8 {[%emt 0:00:02]} Ba6 {[%emt 0:01:11]} 28. Rxf8+ {[%emt 0:01:38]} Bxf8 {[%emt 0:00:12]} 29. Ra3 {[%emt 0:00:24]} Be2 {[%emt 0:00:12]} 30. Ne4 {[%emt 0:00:28]} Nxe4 {[%emt 0:00:41]} 31. Bxe4 {[%emt 0:00:02]} a6 {[%emt 0:00:19]} 32. Rc3 {[%emt 0:02:21]} Bb5 {[%emt 0:01:59]} 33. Bc2 {[%emt 0:00:42]} c4 {[%emt 0:00:19]} 34. a4 {[%emt 0:00:10]} Bb4 {[%emt 0:01:14]} 35. axb5 {[%emt 0:00:05]} axb5 {[%emt 0:00:02]} 36. Ba4 {[%emt 0:01:49]} 1/2-1/2

[Event "FIDE Rating Open 2024"]
[Site "Dhaka"]
[Date "2024.01.16"]
[Round "2.5"]
[White "Abdul, Momin"]
[Black "Abu Sufian, Shakil"]
[Result "0-1"]
[ECO "B72"]
[WhiteElo "1811"]
[BlackElo "2199"]
[Annotator "NA RC"]
[PlyCount "112"]
[EventDate "2024.01.16"]
[EventType "swiss"]
[EventCountry "BAN"]
[SourceTitle "playchess.com"]
[Source "ChessBase"]
[SourceQuality "1"]
[TimeControl "5400+30"]

1. e4 {[%emt 0:36:25]} c5 {[%emt 0:00:11]} 2. Nf3 {[%emt 0:11:32]} d6 {[%emt 0:00:05]} 3. d4 {[%emt 0:00:12]} cxd4 {[%emt 0:00:02]} 4. Nxd4 {[%emt 0:00:06]} Nf6 {[%emt 0:00:03]} 5. Nc3 {[%emt 0:00:12]} g6 {[%emt 0:00:02]} 6. Be2 {[%emt 0:01:07]} Bg7 {[%emt 0:00:06]} 7. Be3 {[%emt 0:00:18]} Nc6 {[%emt 0:00:08]} 8. Qd2 {[%emt 0:00:13]} O-O {[%emt 0:00:09]} 9. O-O-O {[%emt 0:02:53]} d5 {[%emt 0:14:06]} 10. exd5 {[%emt 0:03:39]} Nxd5 {[%emt 0:03:59]} 11. Nxc6 {[%emt 0:00:59]} bxc6 {[%emt 0:00:05]} 12. Nxd5 {[%emt 0:00:43]} cxd5 {[%emt 0:00:04]} 13. Qxd5 {[%emt 0:00:20]} Qc7 {[%emt 0:00:15]} 14. Qxa8 {[%emt 0:03:13]} Bf5 {[%emt 0:00:16]} 15. Qxf8+ {[%emt 0:00:03]} Kxf8 {[%emt 0:01:08]} 16. Bd3 {[%emt 0:00:43]} Bg4 {[%emt 0:09:09]} 17. Rd2 {[%emt 0:02:51]} h5 {[%emt 0:00:44]} 18. Bc4 {[%emt 0:01:35]} Bxb2+ {[%emt 0:02:47]} 19. Kxb2 {[%emt 0:00:17]} Qxc4 {[%emt 0:00:01]} 20. Rd8+ {[%emt 0:02:08]} Kg7 {[%emt 0:00:01]} 21. Rb8 {[%emt 0:07:43]} Be6 {[%emt 0:01:57]} 22. Rd1 {[%emt 0:06:39]} Qxa2+ {[%emt 0:00:50]} 23. Kc1 {[%emt 0:00:46]} Qa3+ {[%emt 0:11:33]} 24. Rb2 {[%emt 0:17:53]} a5 {[%emt 0:01:29]} 25. Rd3 {[%emt 0:00:00]} Qa4 {[%emt 0:00:42]} 26. g3 {[%emt 0:00:00]} Qc6 {[%emt 0:05:25]} 27. h4 {[%emt 0:00:00]} Bf5 {[%emt 0:01:05]} 28. Rb6 {[%emt 0:00:00]} Qc4 {[%emt 0:01:37]} 29. Bd4+ {[%emt 0:00:00]} Kh7 {[%emt 0:07:05]} 30. Rb8 {[%emt 0:00:00]} f6 {[%emt 0:00:13]} 31. Rd2 {[%emt 0:00:00]} Bxc2 {[%emt 0:01:47]} 32. Rxc2 {[%emt 0:00:00]} Qxd4 {[%emt 0:00:01]} 33. Rb7 {[%emt 0:00:00]} Kh6 {[%emt 0:15:31]} 34. Rxe7 {[%emt 0:00:00]} g5 {[%emt 0:00:21]} 35. hxg5+ {[%emt 0:00:00]} Kxg5 {[%emt 0:00:15]} 36. Rg7+ {[%emt 0:00:00]} Kh6 {[%emt 0:04:20]} 37. Rgc7 {[%emt 0:00:00]} a4 {[%emt 0:00:42]} 38. R7c4 {[%emt 0:00:00]} Qa1+ {[%emt 0:00:05]} 39. Kd2 {[%emt 0:00:00]} Qf1 {[%emt 0:03:26]} 40. Kc3 {[%emt 0:08:00]} Qa1+ {[%emt 0:18:45]} 41. Kd2 {[%emt 0:00:00]} Kg6 {[%emt 0:00:00]} 42. Rc1 {[%emt 0:00:00]} Qb2+ {[%emt 0:00:00]} 43. R1c2 {[%emt 0:00:00]} Qb5 {[%emt 0:00:00]} 44. R4c3 {[%emt 0:00:00]} Qb4 {[%emt 0:00:00]} 45. Kd3 {[%emt 0:00:00]} a3 {[%emt 0:00:00]} 46. Ra2 {[%emt 0:00:00]} Qb1+ {[%emt 0:00:00]} 47. Rcc2 {[%emt 0:00:00]} Qb3+ {[%emt 0:00:00]} 48. Ke2 {[%emt 0:00:00]} Kf5 {[%emt 0:00:00]} 49. Kf1 {[%emt 0:00:00]} Kg4 {[%emt 0:00:00]} 50. Kg2 {[%emt 0:00:21]} f5 {[%emt 0:00:00]} 51. Rd2 {[%emt 0:00:47]} f4 {[%emt 0:00:00]} 52. gxf4 {[%emt 0:00:07]} Qf3+ {[%emt 0:00:00]} 53. Kh2 {[%emt 0:01:24]} h4 {[%emt 0:00:00]} 54. Rd8 {[%emt 0:01:59]} Qxf4+ {[%emt 0:00:00]} 55. Kg2 {[%emt 0:01:49]} h3+ {[%emt 0:00:00]} 56. Kg1 {[%emt 0:00:10]} Qc1+ {[%emt 0:00:00]} 0-1

[Event "FIDE Rating Open 2024"]
[Site "Dhaka"]
[Date "2024.01.16"]
[Round "2.6"]
[White "Anata, Choudhury"]
[Black "Mohammad, Din"]
[Result "1-0"]
[ECO "B07"]
[WhiteElo "2196"]
[BlackElo "1795"]
[Annotator "NA RC"]
[PlyCount "59"]
[EventDate "2024.01.16"]
[EventType "swiss"]
[EventCountry "BAN"]
[SourceTitle "playchess.com"]
[Source "ChessBase"]
[SourceQuality "1"]
[TimeControl "5400+30"]

1. e4 {[%emt 0:00:06]} d6 {[%emt 0:01:54]} 2. d4 {[%emt 0:00:18]} Nf6 {[%emt 0:00:14]} 3. Nc3 {[%emt 0:00:10]} c6 {[%emt 0:00:11]} 4. Nf3 {[%emt 0:01:07]} Qa5 {[%emt 0:00:21]} 5. Bd2 {[%emt 0:02:02]} Qc7 {[%emt 0:00:15]} 6. a4 {[%emt 0:00:13]} a5 {[%emt 0:00:20]} 7. h3 {[%emt 0:00:29]} e5 {[%emt 0:00:09]} 8. Be3 {[%emt 0:01:43]} Be7 {[%emt 0:00:20]} 9. Qd2 {[%emt 0:02:17]} Nbd7 {[%emt 0:00:56]} 10. Be2 {[%emt 0:03:27]} Nf8 {[%emt 0:00:14]} 11. g4 {[%emt 0:01:17]} Ng6 {[%emt 0:01:06]} 12. g5 {[%emt 0:00:22]} Nd7 {[%emt 0:00:12]} 13. h4 {[%emt 0:00:26]} Ngf8 {[%emt 0:02:46]} 14. h5 {[%emt 0:00:34]} Nb6 {[%emt 0:00:11]} 15. O-O-O {[%emt 0:01:23]} Be6 {[%emt 0:00:06]} 16. d5 {[%emt 0:04:16]} Bd7 {[%emt 0:00:14]} 17. Kb1 {[%emt 0:00:22]} cxd5 {[%emt 0:00:13]} 18. Bxb6 {[%emt 0:03:49]} Qxb6 {[%emt 0:00:09]} 19. Nxd5 {[%emt 0:00:17]} Qd8 {[%emt 0:00:03]} 20. Qe3 {[%emt 0:11:26]} f6 {[%emt 0:03:09]} 21. h6 {[%emt 0:03:24]} g6 {[%emt 0:00:41]} 22. gxf6 {[%emt 0:00:33]} Bxf6 {[%emt 0:00:03]} 23. Nb6 {[%emt 0:00:16]} Rb8 {[%emt 0:00:06]} 24. Rxd6 {[%emt 0:00:18]} Qe7 {[%emt 0:00:19]} 25. Rxd7 {[%emt 0:00:22]} Nxd7 {[%emt 0:00:13]} 26. Bb5 {[%emt 0:00:42]} Rd8 {[%emt 0:00:27]} 27. Nxd7 {[%emt 0:00:11]} Rxd7 {[%emt 0:00:34]} 28. Rd1 {[%emt 0:00:08]} O-O {[%emt 0:00:06]} 29. Rd4 {[%emt 1:03:02]} Qe6 30. Rxd7 {[%emt 0:00:00]} 1-0

[Event "FIDE Rating Open 2024"]
[Site "Dhaka"]
[Date "2024.01.17"]
[Round "3.1"]
[White "Rahman, Ziaur"]
[Black "Chowdhury, Sohel"]
[Result "1-0"]
[ECO "A07"]
[WhiteElo "2428"]
[BlackElo "1956"]
[Annotator "TA"]
[PlyCount "168"]
[EventDate "2024.01.16"]
[EventType "swiss"]
[EventCountry "BAN"]
[SourceTitle "playchess.com"]
[Source "ChessBase"]
[SourceQuality "1"]
[TimeControl "5400+30"]

{[%evp 9,168,13,27,9,22,12,85,75,79,29,43,40,35,35,53,38,40,37,41,32,37,31,45,41,39,41,34,37,41,22,26,25,33,28,23,28,46,27,18,15,47,19,25,21,65,16,24,13,15,9,16,0,0,0,0,0,8,8,12,12,12,9,12,11,17,9,9,0,0,0,0,0,0,0,0,0,0,0,0,0,0,0,0,0,0,0,0,0,0,0,0,0,17,7,4,0,0,0,0,0,6,0,8,0,0,0,12,12,23,26,37,37,71,47,52,22,25,32,165,163,652,639,517,150,714,706,707,717,343,461,443,443,436,436,312,176,502,37,108,45,59,59,29959,29960,29958,29960,29959,29955,29965,29968,29971,29967,29968,29969,29970,29972,29971,29970,29968,29969,29987]} 1. Nf3 {[%emt 0:01:20]} d5 {[%emt 0:00:58]} 2. g3 {[%emt 0:00:56]} Nf6 {[%emt 0:01:42]} 3. Bg2 {[%emt 0:00:05]} Bf5 {[%emt 0:04:53]} 4. d3 {[%emt 0:00:56]} e6 {[%emt 0:01:09]} 5. O-O {[%emt 0:03:12]} Be7 {[%emt 0:02:42]} 6. Nh4 {[%emt 0:01:06] A07: Réti Opening: New York and Capablanca Systems.} c6 {[%emt 0:04:21]} 7. Qe1 {[%emt 0:05:50] [#]} Nfd7 $146 {[%emt 0:11:27]} (7... O-O $11 {keeps the balance.}) ({Predecessor:} 7... Bg4 8. h3 Bh5 9. f4 O-O 10. e4 Nfd7 11. Nf3 Bxf3 12. Bxf3 a5 13. Nd2 a4 {½-½ Bitensky,I (2384)-Saric,I (2661) EU-ch 16th Jerusalem 2015 (1)}) 8. Nxf5 $16 {[%emt 0:10:56] White is better.} exf5 {[%emt 0:00:16]} 9. e4 {[%emt 0:00:46]} (9. Bh3 $16) 9... fxe4 $11 {[%emt 0:02:18]} 10. dxe4 {[%emt 0:00:41]} dxe4 {[%emt 0:00:36]} 11. Qxe4 {[%emt 0:00:10]} Nf6 {[%emt 1:05:38]} 12. Qf3 {[%emt 0:03:32]} O-O {[%emt 0:00:00]} 13. Na3 {[%emt 0:04:17]} Nbd7 {[%emt 0:00:00]} 14. Nc4 {[%emt 0:01:32]} Nd5 {[%emt 0:00:00]} 15. Bd2 {[%emt 0:04:10]} Bf6 {[%emt 0:00:00]} 16. Rad1 {[%emt 0:00:55]} Qc7 {[%emt 0:00:00]} 17. Ba5 {[%emt 0:09:58] This pair of bishops is nice.} b6 {[%emt 0:00:00]} 18. Bd2 {[%emt 0:00:05]} Rad8 {[%emt 0:00:00]} 19. b3 {[%emt 0:03:15]} Rfe8 {[%emt 0:00:00]} 20. Ne3 {[%emt 0:03:46]} Ne5 {[%emt 0:00:00]} 21. Qe2 {[%emt 0:01:33]} Nxe3 {[%emt 0:00:00]} 22. Bxe3 {[%emt 0:00:16]} Ng6 {[%emt 0:00:00][%cal Of6d4]} 23. Qc4 {[%emt 0:01:34]} c5 {[%emt 0:00:00]} 24. a4 {[%emt 0:01:18]} Qe7 {[%emt 0:00:00]} 25. h4 {[%emt 0:02:00][%cal Bh2h4,Bh4h5][%mdl 32]} h6 {[%emt 0:00:00]} 26. h5 {[%emt 0:01:11]} Nf8 {[%emt 0:00:00] [#] Black is weak on the light squares} 27. a5 {[%emt 0:07:19] White is more active.} Bg5 {[%emt 0:00:00]} 28. Bxg5 {[%emt 0:04:25]} Qxg5 {[%emt 0:00:00]} 29. axb6 {[%emt 0:00:58]} axb6 {[%emt 0:00:00]} 30. Bf3 {[%emt 0:02:03]} (30. Bc6 $5 {[%cal Rc6e8]}) 30... Ne6 {[%emt 0:00:00]} 31. c3 {[%emt 0:00:36] Wards off Nd4} Qf6 {[%emt 0:00:00]} 32. Bc6 {[%emt 0:01:42]} Rxd1 {[%emt 0:00:00]} 33. Rxd1 {[%emt 0:00:12]} Rd8 {[%emt 0:00:00]} 34. Rxd8+ {[%emt 0:00:22]} Qxd8 {[%emt 0:00:00][%mdl 4096] Endgame KQB-KQN} 35. Bd5 {[%emt 0:03:25]} b5 {[%emt 0:00:00]} 36. Qd3 {[%emt 0:00:40]} Ng5 {[%emt 0:00:00]} 37. f4 {[%emt 0:02:09]} Ne6 {[%emt 0:00:00]} 38. Qf5 {[%emt 0:01:02]} Qe7 {[%emt 0:00:00]} 39. Qe5 {[%emt 0:00:44]} b4 {[%emt 0:02:04]} 40. cxb4 {[%emt 0:02:23]} cxb4 {[%emt 0:00:04]} 41. Kg2 {[%emt 0:01:06]} Qd7 {[%emt 0:03:34]} 42. Kh2 {[%emt 0:02:19]} Nf8 {[%emt 0:01:03]} 43. Bc4 {[%emt 0:02:11]} Qd2+ {[%emt 0:00:29]} 44. Kh3 {[%emt 0:00:41]} Qd7+ {[%emt 0:00:15]} 45. Kg2 {[%emt 0:01:43]} Qd2+ {[%emt 0:00:16]} 46. Kf3 {[%emt 0:00:35]} Qd1+ {[%emt 0:00:52]} 47. Kf2 {[%emt 0:00:50]} Qd2+ {[%emt 0:01:15]} 48. Qe2 {[%emt 0:00:23]} Qd4+ {[%emt 0:01:29]} 49. Kg2 {[%emt 0:00:46]} Qd7 {[%emt 0:01:13]} 50. Qe4 {[%emt 0:02:03]} Qg4 {[%emt 0:01:33]} 51. Qd5 {[%emt 0:01:56]} Qd7 {[%emt 0:01:43]} 52. Kf3 {[%emt 0:01:10]} (52. Qxd7 {simplifies} Nxd7 53. Bd5 Nf6 54. Bf3) 52... Qe7 {[%emt 0:01:21]} 53. Qe4 {[%emt 0:00:35]} Qc5 {[%emt 0:01:49]} 54. Qd5 {[%emt 0:01:41]} Qe7 {[%emt 0:00:03]} 55. Qe5 {[%emt 0:01:43]} Qb7+ {[%emt 0:00:48]} 56. Bd5 {[%emt 0:00:29]} Qd7 {[%emt 0:00:45]} 57. g4 {[%emt 0:00:36]} Nh7 {[%emt 0:00:57]} 58. Qb8+ {[%emt 0:00:53]} Nf8 {[%emt 0:00:02]} 59. Qb7 {[%emt 0:00:22]} Qxb7 {[%emt 0:01:14]} 60. Bxb7 {[%emt 0:00:02] KB-KN} Ne6 {[%emt 0:00:29]} 61. Bd5 {[%emt 0:00:46] Bxe6 is the strong threat.} Nc7 {[%emt 0:00:39]} 62. Bc4 {[%emt 0:01:08] Threatening Ke4.} Kf8 {[%emt 0:00:02]} 63. Ke4 {[%emt 0:00:15] Strongly threatening Ke5.} Ke7 {[%emt 0:00:02]} ({Black should play} 63... g6 $1 $14) 64. Kd4 $18 {[%emt 0:02:52]} f5 $2 {[%emt 0:01:26]} (64... Ne8) 65. gxf5 {[%emt 0:00:48]} Kd6 {[%emt 0:00:31]} 66. Bg8 $2 {[%emt 0:01:09]} (66. f6 $1 $18 {[%cal Rf6g7]} gxf6 67. Ke4) 66... Ne8 $2 {[%emt 0:00:11]} (66... Nb5+ $16 67. Kc4 Kc6 68. Kxb4 Nd4) 67. Kc4 {[%emt 0:00:08]} Nf6 {[%emt 0:00:44]} 68. Bf7 {[%emt 0:00:01]} Ke7 {[%emt 0:00:19]} 69. Bg6 {[%emt 0:00:19]} Kd6 {[%emt 0:00:32]} 70. Kxb4 {[%emt 0:00:20]} Nd5+ {[%emt 0:00:02] [#]} 71. Kb5 $1 {[%emt 0:00:40]} Nxf4 {[%emt 0:00:37]} 72. b4 {[%emt 0:00:02][%cal Bb3b4,Bb4b5,Bb5b6][%mdl 32] Hoping for Ka5.} Nd5 $2 {[%emt 0:00:48]} (72... Kd7 73. Kc5 Nd3+ 74. Kb5 Nf4) 73. Kc4 $2 {[%emt 0:00:45]} (73. Bf7 $18 {White threatens Bxd5 and mate.} Nf6 74. Ka6) 73... Nb6+ {[%emt 0:00:50] [#]} ({Better is} 73... Ne3+ $14 74. Kb5 Nd5) 74. Kd4 {[%emt 0:00:15]} (74. Kb3 $1 $16) 74... Nd5 $14 {[%emt 0:00:37]} 75. b5 {[%emt 0:00:07]} Nc7 $2 {[%emt 0:00:11][%mdl 8192]} (75... Nf6 $14) 76. b6 {[%emt 0:01:55] White mates.} Na6 {[%emt 0:00:52]} 77. Be8 {[%emt 0:00:44]} Nc5 {[%emt 0:00:36]} 78. Kc4 {[%emt 0:00:21]} Nb7 {[%emt 0:00:28]} 79. Kb5 {[%emt 0:00:27]} Ke7 {[%emt 0:00:10]} 80. Bg6 {[%emt 0:00:19]} Kd6 {[%emt 0:00:27]} 81. Ka6 {[%emt 0:00:35]} Nc5+ {[%emt 0:00:59]} 82. Ka7 {[%emt 0:00:07]} Nd7 {[%emt 0:00:36]} 83. Be8 {[%emt 0:00:19]} Nc5 {[%emt 0:00:31]} 84. b7 {[%emt 0:00:17]} Kd5 {[%emt 0:01:02] Weighted Error Value: White=0.06 (flawless) /Black=0.07 (flawless)} 1-0

[Event "FIDE Rating Open 2024"]
[Site "Dhaka"]
[Date "2024.01.17"]
[Round "3.2"]
[White "Sujan"]
[Black "Zia, Tahsin Tajwar"]
[Result "1/2-1/2"]
[ECO "B21"]
[WhiteElo "1952"]
[BlackElo "2275"]
[Annotator "RC"]
[PlyCount "58"]
[EventDate "2024.01.16"]
[EventType "swiss"]
[EventCountry "BAN"]
[SourceTitle "playchess.com"]
[Source "ChessBase"]
[SourceQuality "1"]
[TimeControl "5400+30"]

1. e4 {[%emt 0:00:36]} c5 {[%emt 0:01:17]} 2. Nf3 {[%emt 0:03:40]} e6 {[%emt 0:00:11]} 3. d4 {[%emt 0:00:57]} cxd4 {[%emt 0:00:06]} 4. c3 {[%emt 0:02:38]} dxc3 {[%emt 0:01:05]} 5. Nxc3 {[%emt 0:00:02]} Nc6 {[%emt 0:00:12]} 6. a3 {[%emt 0:03:07]} d6 {[%emt 0:00:29]} 7. Bc4 {[%emt 0:06:26]} Nf6 {[%emt 0:00:42]} 8. O-O {[%emt 0:04:16]} Be7 {[%emt 0:00:31]} 9. Re1 {[%emt 0:00:47]} O-O {[%emt 0:00:29]} 10. h3 {[%emt 0:04:38]} a6 {[%emt 0:00:50]} 11. Be3 {[%emt 0:00:04]} b5 {[%emt 0:00:59]} 12. Ba2 {[%emt 0:01:17]} Bb7 {[%emt 0:01:30]} 13. Rc1 {[%emt 0:03:32]} Rc8 {[%emt 0:05:59]} 14. Qd3 {[%emt 0:13:06]} Na5 {[%emt 0:07:56]} 15. Nd2 {[%emt 0:12:11]} Nd7 {[%emt 0:02:38]} 16. f4 {[%emt 0:02:11]} Nb6 {[%emt 0:08:43]} 17. Nxb5 {[%emt 0:02:41]} d5 {[%emt 0:23:42]} 18. Rxc8 {[%emt 0:04:45]} Nxc8 {[%emt 0:02:53]} 19. Nc3 {[%emt 0:01:33]} dxe4 {[%emt 0:03:10]} 20. Qxd8 {[%emt 0:01:56]} Rxd8 {[%emt 0:01:12]} 21. Ndxe4 {[%emt 0:00:56]} Bc6 {[%emt 0:05:23]} 22. Nc5 {[%emt 0:06:15]} Bxc5 {[%emt 0:00:24]} 23. Bxc5 {[%emt 0:00:02]} Nb7 {[%emt 0:00:04]} 24. Bf2 {[%emt 0:02:09]} Ne7 {[%emt 0:01:54]} 25. Bh4 {[%emt 0:02:00]} Rd7 {[%emt 0:03:15]} 26. Bxe7 {[%emt 0:00:18]} Rxe7 {[%emt 0:00:02]} 27. f5 {[%emt 0:00:23]} Kf8 {[%emt 0:07:09]} 28. fxe6 {[%emt 0:00:54]} Nc5 {[%emt 0:00:15]} 29. Bc4 {[%emt 0:01:08]} Bb7 {[%emt 0:03:08]} 1/2-1/2